[Event "Titled Tuesday Blitz August 15 Late 2023"]
[White "Nilsen, Tobias Lang"]
[Black "Kohler, Aran"]
[WhiteFideId "1521624"]
[BlackFideId "1002856"]
[WhiteElo "2439"]
[BlackElo "2224"]
[Result "0-1"]
[Round "4"]
[TimeControl "180+1"]
[Date "2023.08.15"]
[WhiteClock "0:01:46"]
[BlackClock "0:00:52"]
[Board "162"]

1. e4 {[%clk 0:03:00]}  c5 {[%clk 0:02:59]} 2. Nf3 {[%clk 0:03:01]}  d6 {[%clk 0:03:00]} 3. Bb5+ {[%clk 0:03:01]}  Nc6 {[%clk 0:02:59]} 4. O-O {[%clk 0:02:58]}  Bd7 {[%clk 0:02:59]} 5. Re1 {[%clk 0:02:58]}  e6 {[%clk 0:02:57]} 6. c3 {[%clk 0:02:59]}  a6 {[%clk 0:02:55]} 7. Bf1 {[%clk 0:02:58]}  Be7 {[%clk 0:02:53]} 8. d4 {[%clk 0:02:58]}  cxd4 {[%clk 0:02:49]} 9. cxd4 {[%clk 0:02:59]}  Nf6 {[%clk 0:02:46]} 10. Nc3 {[%clk 0:02:59]}  O-O {[%clk 0:02:40]} 11. h3 {[%clk 0:02:59]}  d5 {[%clk 0:02:37]} 12. e5 {[%clk 0:02:58]}  Ne8 {[%clk 0:02:33]} 13. a3 {[%clk 0:02:58]}  Rc8 {[%clk 0:02:30]} 14. Bd3 {[%clk 0:02:58]}  h6 {[%clk 0:02:30]} 15. Bf4 {[%clk 0:02:58]}  f5 {[%clk 0:02:28]} 16. exf6 {[%clk 0:02:58]}  Bxf6 {[%clk 0:02:25]} 17. Ne2 {[%clk 0:02:56]}  g5 {[%clk 0:02:15]} 18. Bh2 {[%clk 0:02:55]}  Bg7 {[%clk 0:02:15]} 19. Qd2 {[%clk 0:02:49]}  Rxf3 {[%clk 0:02:12]} 20. gxf3 {[%clk 0:02:49]}  Nxd4 {[%clk 0:02:12]} 21. Nxd4 {[%clk 0:02:49]}  Bxd4 {[%clk 0:02:12]} 22. Bh7+ {[%clk 0:02:50]}  Kxh7 {[%clk 0:02:00]} 23. Qxd4 {[%clk 0:02:50]}  Qf6 {[%clk 0:01:59]} 24. Qd3+ {[%clk 0:02:45]}  Kg8 {[%clk 0:01:57]} 25. Be5 {[%clk 0:02:45]}  Qf5 {[%clk 0:01:54]} 26. Qxf5 {[%clk 0:02:44]}  exf5 {[%clk 0:01:55]} 27. Rac1 {[%clk 0:02:44]}  Bc6 {[%clk 0:01:55]} 28. f4 {[%clk 0:02:37]}  Kf7 {[%clk 0:01:54]} 29. Kh2 {[%clk 0:02:36]}  Rd8 {[%clk 0:01:47]} 30. Rcd1 {[%clk 0:02:34]}  Nf6 {[%clk 0:01:43]} 31. Bxf6 {[%clk 0:02:34]}  Kxf6 {[%clk 0:01:44]} 32. fxg5+ {[%clk 0:02:34]}  hxg5 {[%clk 0:01:43]} 33. Rd4 {[%clk 0:02:33]}  f4 {[%clk 0:01:40]} 34. h4 {[%clk 0:02:33]}  Rh8 {[%clk 0:01:39]} 35. Kg2 {[%clk 0:02:32]}  Rxh4 {[%clk 0:01:39]} 36. a4 {[%clk 0:02:27]}  Kf5 {[%clk 0:01:36]} 37. f3 {[%clk 0:02:25]}  g4 {[%clk 0:01:31]} 38. fxg4+ {[%clk 0:02:26]}  Rxg4+ {[%clk 0:01:32]} 39. Kf2 {[%clk 0:02:26]}  Rg3 {[%clk 0:01:32]} 40. Re7 {[%clk 0:02:18]}  Rb3 {[%clk 0:01:29]} 41. Rf7+ {[%clk 0:02:14]}  Ke5 {[%clk 0:01:27]} 42. Rdxf4 {[%clk 0:02:14]}  Rxb2+ {[%clk 0:01:27]} 43. Ke1 {[%clk 0:02:09]}  Kd6 {[%clk 0:01:27]} 44. Kd1 {[%clk 0:02:09]}  Kc5 {[%clk 0:01:27]} 45. Kc1 {[%clk 0:02:09]}  Ra2 {[%clk 0:01:27]} 46. Rc7 {[%clk 0:02:08]}  Kb6 {[%clk 0:01:26]} 47. Rg7 {[%clk 0:02:04]}  Rxa4 {[%clk 0:01:26]} 48. Rf2 {[%clk 0:02:05]}  Rc4+ {[%clk 0:01:25]} 49. Kb2 {[%clk 0:02:05]}  Kc5 {[%clk 0:01:26]} 50. Rg5 {[%clk 0:02:05]}  b5 {[%clk 0:01:26]} 51. Rf8 {[%clk 0:02:04]}  Kb4 {[%clk 0:01:16]} 52. Rg3 {[%clk 0:02:01]}  d4 {[%clk 0:01:12]} 53. Rf5 {[%clk 0:02:00]}  Be4 {[%clk 0:01:10]} 54. Rb3+ {[%clk 0:02:00]}  Ka4 {[%clk 0:01:10]} 55. Ra3+ {[%clk 0:02:00]}  Kb4 {[%clk 0:01:10]} 56. Re5 {[%clk 0:01:59]}  Rc2+ {[%clk 0:01:09]} 57. Kb1 {[%clk 0:01:52]}  Kxa3 {[%clk 0:00:57]} 58. Rxe4 {[%clk 0:01:52]}  Rd2 {[%clk 0:00:56]} 59. Kc1 {[%clk 0:01:52]}  Rd3 {[%clk 0:00:57]} 60. Kc2 {[%clk 0:01:52]}  Rc3+ {[%clk 0:00:57]} 61. Kb1 {[%clk 0:01:52]}  Rc4 {[%clk 0:00:57]} 62. Re6 {[%clk 0:01:52]}  a5 {[%clk 0:00:57]} 63. Re2 {[%clk 0:01:51]}  a4 {[%clk 0:00:57]} 64. Ra2+ {[%clk 0:01:50]}  Kb4 {[%clk 0:00:57]} 65. Rb2+ {[%clk 0:01:51]}  Kc5 {[%clk 0:00:57]} 66. Rh2 {[%clk 0:01:51]}  Rc3 {[%clk 0:00:56]} 67. Rh5+ {[%clk 0:01:51]}  Kc4 {[%clk 0:00:57]} 68. Rh2 {[%clk 0:01:52]}  b4 {[%clk 0:00:57]} 69. Kb2 {[%clk 0:01:52]}  a3+ {[%clk 0:00:56]} 70. Ka2 {[%clk 0:01:52]}  d3 {[%clk 0:00:56]} 71. Ka1 {[%clk 0:01:51]}  Rc2 {[%clk 0:00:54]} 72. Rh4+ {[%clk 0:01:49]}  Kb3 {[%clk 0:00:53]} 73. Kb1 {[%clk 0:01:46]}  a2+ {[%clk 0:00:52]} 74. Ka1 {[%clk 0:01:46]}  Rc1# {[%clk 0:00:52]} 0-1


[Site "https://www.chess.com"]

[Event "Titled Tuesday Blitz August 15 Late 2023"]
[White "Alexikov, Alexander"]
[Black "Arnold, Ken"]
[WhiteFideId "14103958"]
[BlackFideId "2056836"]
[WhiteElo "2217"]
[BlackElo "2395"]
[Result "0-1"]
[Round "4"]
[TimeControl "180+1"]
[Date "2023.08.15"]
[WhiteClock "0:00:00"]
[BlackClock "0:00:25"]
[Board "163"]

1. e4 {[%clk 0:03:00]}  c6 {[%clk 0:02:58]} 2. d4 {[%clk 0:02:59]}  d5 {[%clk 0:02:58]} 3. Nc3 {[%clk 0:02:59]}  dxe4 {[%clk 0:02:58]} 4. Nxe4 {[%clk 0:02:59]}  Nf6 {[%clk 0:02:58]} 5. Ng5 {[%clk 0:02:57]}  h6 {[%clk 0:02:54]} 6. N5f3 {[%clk 0:02:53]}  Bg4 {[%clk 0:02:53]} 7. h3 {[%clk 0:02:52]}  Bf5 {[%clk 0:02:52]} 8. Bc4 {[%clk 0:02:47]}  e6 {[%clk 0:02:52]} 9. Ne5 {[%clk 0:02:44]}  Nbd7 {[%clk 0:02:51]} 10. Ngf3 {[%clk 0:02:43]}  Nxe5 {[%clk 0:02:50]} 11. Nxe5 {[%clk 0:02:42]}  Bd6 {[%clk 0:02:49]} 12. Qe2 {[%clk 0:02:41]}  Bxe5 {[%clk 0:02:48]} 13. dxe5 {[%clk 0:02:40]}  Nd7 {[%clk 0:02:46]} 14. O-O {[%clk 0:02:39]}  Qc7 {[%clk 0:02:44]} 15. Re1 {[%clk 0:02:37]}  O-O {[%clk 0:02:41]} 16. Bf4 {[%clk 0:02:33]}  Rfd8 {[%clk 0:02:38]} 17. Rad1 {[%clk 0:02:25]}  Nb6 {[%clk 0:02:32]} 18. Bb3 {[%clk 0:02:23]}  a5 {[%clk 0:02:30]} 19. a3 {[%clk 0:02:19]}  Nd5 {[%clk 0:02:26]} 20. Bc1 {[%clk 0:02:14]}  a4 {[%clk 0:02:25]} 21. Ba2 {[%clk 0:02:13]}  b5 {[%clk 0:02:23]} 22. Rd4 {[%clk 0:02:01]}  c5 {[%clk 0:02:18]} 23. Rh4 {[%clk 0:01:49]}  c4 {[%clk 0:02:14]} 24. Bxh6 {[%clk 0:01:34]}  gxh6 {[%clk 0:02:13]} 25. Qh5 {[%clk 0:01:34]}  Kf8 {[%clk 0:01:49]} 26. Qxh6+ {[%clk 0:01:30]}  Ke7 {[%clk 0:01:47]} 27. Bb1 {[%clk 0:01:17]}  Rh8 {[%clk 0:01:41]} 28. Qg5+ {[%clk 0:01:04]}  Kd7 {[%clk 0:01:41]} 29. Rd4 {[%clk 0:01:03]}  Qc5 {[%clk 0:01:35]} 30. Red1 {[%clk 0:00:52]}  Bg6 {[%clk 0:01:20]} 31. c3 {[%clk 0:00:48]}  Bxb1 {[%clk 0:01:18]} 32. Rxb1 {[%clk 0:00:47]}  Kc6 {[%clk 0:01:13]} 33. Rbd1 {[%clk 0:00:43]}  Rad8 {[%clk 0:01:12]} 34. Qg7 {[%clk 0:00:38]}  Qf8 {[%clk 0:01:07]} 35. Qg3 {[%clk 0:00:36]}  Rg8 {[%clk 0:01:02]} 36. Qf3 {[%clk 0:00:35]}  Qg7 {[%clk 0:00:58]} 37. g4 {[%clk 0:00:23]}  Qxe5 {[%clk 0:00:57]} 38. Qxf7 {[%clk 0:00:22]}  Rgf8 {[%clk 0:00:54]} 39. Qa7 {[%clk 0:00:20]}  Qc7 {[%clk 0:00:51]} 40. Qxc7+ {[%clk 0:00:11]}  Kxc7 {[%clk 0:00:50]} 41. Kf1 {[%clk 0:00:08]}  Rf3 {[%clk 0:00:46]} 42. Kg2 {[%clk 0:00:07]}  Rdf8 {[%clk 0:00:45]} 43. R1d2 {[%clk 0:00:07]}  Kc6 {[%clk 0:00:35]} 44. h4 {[%clk 0:00:05]}  Kc5 {[%clk 0:00:32]} 45. Re4 {[%clk 0:00:04]}  R3f6 {[%clk 0:00:28]} 46. Rdd4 {[%clk 0:00:00]}  Kd6 {[%clk 0:00:25]} 0-1


[Site "https://www.chess.com"]

[Event "Titled Tuesday Blitz August 15 Late 2023"]
[White "Mikhalsky, Vladimir"]
[Black "KSho99"]
[WhiteFideId "14144352"]
[WhiteElo "2378"]
[BlackElo "2214"]
[Result "1-0"]
[Round "4"]
[TimeControl "180+1"]
[Date "2023.08.15"]
[WhiteClock "0:00:14"]
[BlackClock "0:00:00"]
[Board "164"]

1. d4 {[%clk 0:02:56]}  d5 {[%clk 0:02:59]} 2. c4 {[%clk 0:02:55]}  dxc4 {[%clk 0:03:00]} 3. Nf3 {[%clk 0:02:55]}  Nf6 {[%clk 0:02:59]} 4. e3 {[%clk 0:02:55]}  e6 {[%clk 0:03:00]} 5. Bxc4 {[%clk 0:02:54]}  c5 {[%clk 0:03:00]} 6. O-O {[%clk 0:02:53]}  a6 {[%clk 0:03:00]} 7. Nc3 {[%clk 0:02:53]}  Nc6 {[%clk 0:02:58]} 8. d5 {[%clk 0:02:47]}  Na5 {[%clk 0:02:42]} 9. b3 {[%clk 0:02:39]}  Nxc4 {[%clk 0:02:40]} 10. bxc4 {[%clk 0:02:39]}  Bd6 {[%clk 0:02:28]} 11. e4 {[%clk 0:02:36]}  e5 {[%clk 0:02:28]} 12. a4 {[%clk 0:02:26]}  Bg4 {[%clk 0:02:14]} 13. h3 {[%clk 0:02:26]}  Bh5 {[%clk 0:02:14]} 14. Rb1 {[%clk 0:02:18]}  Qd7 {[%clk 0:02:06]} 15. Qd3 {[%clk 0:02:13]}  O-O {[%clk 0:01:37]} 16. Bg5 {[%clk 0:02:09]}  Ne8 {[%clk 0:01:29]} 17. Rb3 {[%clk 0:02:01]}  f6 {[%clk 0:01:28]} 18. Bh4 {[%clk 0:01:59]}  Be7 {[%clk 0:01:15]} 19. Rfb1 {[%clk 0:01:54]}  Nd6 {[%clk 0:01:15]} 20. Bg3 {[%clk 0:01:43]}  Rab8 {[%clk 0:00:59]} 21. a5 {[%clk 0:01:31]}  Bxf3 {[%clk 0:00:42]} 22. gxf3 {[%clk 0:01:15]}  Qxh3 {[%clk 0:00:42]} 23. Na4 {[%clk 0:01:14]}  Rbc8 {[%clk 0:00:27]} 24. f4 {[%clk 0:00:51]}  Qg4 {[%clk 0:00:12]} 25. fxe5 {[%clk 0:00:42]}  fxe5 {[%clk 0:00:11]} 26. Re1 {[%clk 0:00:33]}  h5 {[%clk 0:00:09]} 27. Kf1 {[%clk 0:00:31]}  Qh3+ {[%clk 0:00:05]} 28. Ke2 {[%clk 0:00:29]}  Qg4+ {[%clk 0:00:04]} 29. Kd2 {[%clk 0:00:24]}  Bg5+ {[%clk 0:00:03]} 30. Kc2 {[%clk 0:00:24]}  Bf4 {[%clk 0:00:01]} 31. Qe2 {[%clk 0:00:18]}  Bxg3 {[%clk 0:00:01]} 32. Qxg4 {[%clk 0:00:16]}  hxg4 {[%clk 0:00:01]} 33. Rxg3 {[%clk 0:00:14]}  Rxf2+ {[%clk 0:00:01]} 34. Kd3 {[%clk 0:00:14]}  Rf3+ {[%clk 0:00:01]} 35. Rxf3 {[%clk 0:00:14]}  gxf3 {[%clk 0:00:00]} 36. Rf1 {[%clk 0:00:14]} 1-0


[Site "https://www.chess.com"]

[Event "Titled Tuesday Blitz August 15 Late 2023"]
[White "arturdailima"]
[Black "campochess"]
[WhiteElo "2313"]
[BlackElo "2148"]
[Result "0-1"]
[Round "4"]
[TimeControl "180+1"]
[Date "2023.08.15"]
[WhiteClock "0:00:19"]
[BlackClock "0:00:24"]
[Board "167"]

1. e4 {[%clk 0:03:00]}  c5 {[%clk 0:02:59]} 2. Nf3 {[%clk 0:02:58]}  Nc6 {[%clk 0:02:59]} 3. Nc3 {[%clk 0:02:59]}  g6 {[%clk 0:02:58]} 4. Bc4 {[%clk 0:02:58]}  Bg7 {[%clk 0:02:58]} 5. O-O {[%clk 0:02:55]}  d6 {[%clk 0:02:56]} 6. h3 {[%clk 0:02:54]}  Nf6 {[%clk 0:02:56]} 7. d3 {[%clk 0:02:53]}  O-O {[%clk 0:02:56]} 8. a3 {[%clk 0:02:53]}  a6 {[%clk 0:02:55]} 9. Ba2 {[%clk 0:02:48]}  e6 {[%clk 0:02:45]} 10. Be3 {[%clk 0:02:45]}  Nd7 {[%clk 0:02:44]} 11. d4 {[%clk 0:02:43]}  cxd4 {[%clk 0:02:43]} 12. Nxd4 {[%clk 0:02:44]}  Nce5 {[%clk 0:02:42]} 13. f4 {[%clk 0:02:35]}  Nc6 {[%clk 0:02:41]} 14. Qd2 {[%clk 0:02:33]}  Nc5 {[%clk 0:02:38]} 15. Rfd1 {[%clk 0:02:25]}  Qc7 {[%clk 0:02:38]} 16. f5 {[%clk 0:02:06]}  Ne5 {[%clk 0:02:25]} 17. fxe6 {[%clk 0:02:02]}  Nxe6 {[%clk 0:02:24]} 18. Nd5 {[%clk 0:02:00]}  Qd8 {[%clk 0:02:21]} 19. Rf1 {[%clk 0:01:50]}  Nc5 {[%clk 0:02:11]} 20. Nc3 {[%clk 0:01:35]}  Be6 {[%clk 0:01:56]} 21. b4 {[%clk 0:01:29]}  Bxa2 {[%clk 0:01:52]} 22. Rxa2 {[%clk 0:01:25]}  Nc4 {[%clk 0:01:51]} 23. Qe2 {[%clk 0:01:21]}  Nxe3 {[%clk 0:01:50]} 24. Qxe3 {[%clk 0:01:21]}  Nd7 {[%clk 0:01:41]} 25. Nd5 {[%clk 0:01:20]}  Rc8 {[%clk 0:01:37]} 26. c3 {[%clk 0:01:11]}  Rc4 {[%clk 0:01:28]} 27. Qe2 {[%clk 0:01:01]}  Ne5 {[%clk 0:01:25]} 28. Rc2 {[%clk 0:00:53]}  Kh8 {[%clk 0:01:22]} 29. Kh1 {[%clk 0:00:48]}  Qh4 {[%clk 0:01:14]} 30. Rf4 {[%clk 0:00:43]}  Qh6 {[%clk 0:01:13]} 31. Qf1 {[%clk 0:00:36]}  Rcc8 {[%clk 0:00:53]} 32. a4 {[%clk 0:00:32]}  Nc6 {[%clk 0:00:43]} 33. Rxf7 {[%clk 0:00:32]}  Nxd4 {[%clk 0:00:40]} 34. cxd4 {[%clk 0:00:29]}  Rxc2 {[%clk 0:00:37]} 35. Rxf8+ {[%clk 0:00:28]}  Bxf8 {[%clk 0:00:37]} 36. Qf7 {[%clk 0:00:24]}  Qg7 {[%clk 0:00:29]} 37. Qe6 {[%clk 0:00:21]}  Qxd4 {[%clk 0:00:25]} 38. Nf6 {[%clk 0:00:22]}  Rc1+ {[%clk 0:00:24]} 39. Kh2 {[%clk 0:00:19]}  Qe5+ {[%clk 0:00:24]} 0-1


[Site "https://www.chess.com"]

[Event "Titled Tuesday Blitz August 15 Late 2023"]
[White "Martinez, Ayelen"]
[Black "Vargas, Mauricio"]
[WhiteFideId "118702"]
[BlackFideId "4404572"]
[WhiteElo "2244"]
[BlackElo "1885"]
[Result "1-0"]
[Round "4"]
[TimeControl "180+1"]
[Date "2023.08.15"]
[WhiteClock "0:00:03"]
[BlackClock "0:00:00"]
[Board "172"]

1. e4 {[%clk 0:03:00]}  d5 {[%clk 0:03:00]} 2. exd5 {[%clk 0:02:57]}  Qxd5 {[%clk 0:03:01]} 3. Nc3 {[%clk 0:02:52]}  Qa5 {[%clk 0:01:50]} 4. Nf3 {[%clk 0:02:00]}  c6 {[%clk 0:01:51]} 5. Be2 {[%clk 0:00:23]}  Nf6 {[%clk 0:01:44]} 6. O-O {[%clk 0:00:24]}  Bf5 {[%clk 0:01:36]} 7. d4 {[%clk 0:00:22]}  e6 {[%clk 0:01:35]} 8. Re1 {[%clk 0:00:21]}  Bb4 {[%clk 0:01:28]} 9. Bd2 {[%clk 0:00:20]}  Qc7 {[%clk 0:01:28]} 10. a3 {[%clk 0:00:20]}  Ba5 {[%clk 0:01:26]} 11. Ne5 {[%clk 0:00:19]}  O-O {[%clk 0:01:14]} 12. Bf4 {[%clk 0:00:16]}  Qd8 {[%clk 0:00:57]} 13. h3 {[%clk 0:00:12]}  Nbd7 {[%clk 0:00:38]} 14. b4 {[%clk 0:00:11]}  Bb6 {[%clk 0:00:37]} 15. Na4 {[%clk 0:00:08]}  Bc7 {[%clk 0:00:34]} 16. Nc5 {[%clk 0:00:07]}  Nxe5 {[%clk 0:00:30]} 17. dxe5 {[%clk 0:00:08]}  Nd5 {[%clk 0:00:27]} 18. Bg3 {[%clk 0:00:07]}  Qe7 {[%clk 0:00:20]} 19. Bd3 {[%clk 0:00:07]}  b6 {[%clk 0:00:16]} 20. Bxf5 {[%clk 0:00:06]}  bxc5 {[%clk 0:00:13]} 21. Be4 {[%clk 0:00:05]}  Nc3 {[%clk 0:00:08]} 22. Bxh7+ {[%clk 0:00:01]}  Kxh7 {[%clk 0:00:07]} 23. Qd3+ {[%clk 0:00:02]}  Kg8 {[%clk 0:00:02]} 24. Qxc3 {[%clk 0:00:03]}  cxb4 {[%clk 0:00:02]} 25. axb4 {[%clk 0:00:04]}  Bb6 {[%clk 0:00:00]} 26. Qxc6 {[%clk 0:00:03]} 1-0


[Site "https://www.chess.com"]

[Event "Titled Tuesday Blitz August 15 Late 2023"]
[White "Firouzja, Alireza"]
[Black "Sadhwani, Raunak"]
[WhiteFideId "12573981"]
[BlackFideId "35093487"]
[WhiteElo "3128"]
[BlackElo "3021"]
[Result "1-0"]
[Round "5"]
[TimeControl "180+1"]
[Date "2023.08.15"]
[WhiteClock "0:01:02"]
[BlackClock "0:00:29"]
[Board "1"]

1. e4 {[%clk 0:03:00]}  e5 {[%clk 0:02:57]} 2. Nf3 {[%clk 0:03:01]}  Nc6 {[%clk 0:02:55]} 3. Bb5 {[%clk 0:03:01]}  Nf6 {[%clk 0:02:55]} 4. d3 {[%clk 0:03:00]}  Bc5 {[%clk 0:02:55]} 5. Nc3 {[%clk 0:02:56]}  O-O {[%clk 0:02:50]} 6. h3 {[%clk 0:02:54]}  d6 {[%clk 0:02:43]} 7. Bxc6 {[%clk 0:02:49]}  bxc6 {[%clk 0:02:44]} 8. O-O {[%clk 0:02:49]}  h6 {[%clk 0:02:39]} 9. Ne2 {[%clk 0:02:48]}  d5 {[%clk 0:02:37]} 10. exd5 {[%clk 0:02:39]}  e4 {[%clk 0:02:32]} 11. Ne5 {[%clk 0:02:26]}  cxd5 {[%clk 0:02:29]} 12. Be3 {[%clk 0:01:59]}  Bd6 {[%clk 0:02:21]} 13. f4 {[%clk 0:01:59]}  c5 {[%clk 0:02:15]} 14. d4 {[%clk 0:01:57]}  c4 {[%clk 0:02:09]} 15. Rf2 {[%clk 0:01:45]}  Ba6 {[%clk 0:02:02]} 16. c3 {[%clk 0:01:42]}  Rb8 {[%clk 0:02:00]} 17. Nc6 {[%clk 0:01:37]}  Qb6 {[%clk 0:01:58]} 18. Nxb8 {[%clk 0:01:37]}  Rxb8 {[%clk 0:01:59]} 19. Rb1 {[%clk 0:01:37]}  Qa5 {[%clk 0:01:59]} 20. f5 {[%clk 0:01:29]}  Rb6 {[%clk 0:01:34]} 21. Bf4 {[%clk 0:01:24]}  Qxa2 {[%clk 0:01:10]} 22. Bxd6 {[%clk 0:01:21]}  Rxd6 {[%clk 0:01:11]} 23. Nf4 {[%clk 0:01:16]}  Qa5 {[%clk 0:01:11]} 24. g4 {[%clk 0:01:13]}  Qc7 {[%clk 0:01:06]} 25. Qe2 {[%clk 0:01:12]}  Rb6 {[%clk 0:01:02]} 26. Qe3 {[%clk 0:01:11]}  Bb7 {[%clk 0:00:58]} 27. Rg2 {[%clk 0:01:11]}  Nh7 {[%clk 0:00:53]} 28. h4 {[%clk 0:01:10]}  Qd7 {[%clk 0:00:48]} 29. Rf1 {[%clk 0:01:10]}  h5 {[%clk 0:00:43]} 30. Nxh5 {[%clk 0:01:09]}  Rh6 {[%clk 0:00:44]} 31. f6 {[%clk 0:01:07]}  Qd8 {[%clk 0:00:29]} 32. Nxg7 {[%clk 0:01:02]} 1-0


[Site "https://www.chess.com"]

[Event "Titled Tuesday Blitz August 15 Late 2023"]
[White "Nakamura, Hikaru"]
[Black "Mikhailov, Viacheslav"]
[WhiteFideId "2016192"]
[BlackFideId "4187369"]
[WhiteElo "3225"]
[BlackElo "2718"]
[Result "1-0"]
[Round "5"]
[TimeControl "180+1"]
[Date "2023.08.15"]
[WhiteClock "0:02:15"]
[BlackClock "0:01:08"]
[Board "7"]

1. b3 {[%clk 0:03:00]}  Nf6 {[%clk 0:02:59]} 2. Bb2 {[%clk 0:03:01]}  g6 {[%clk 0:03:00]} 3. Bxf6 {[%clk 0:02:59]}  exf6 {[%clk 0:03:01]} 4. e3 {[%clk 0:03:00]}  Bg7 {[%clk 0:03:01]} 5. d4 {[%clk 0:03:00]}  O-O {[%clk 0:03:02]} 6. g3 {[%clk 0:03:01]}  f5 {[%clk 0:03:03]} 7. Bg2 {[%clk 0:03:01]}  d6 {[%clk 0:03:03]} 8. Ne2 {[%clk 0:03:01]}  c5 {[%clk 0:03:04]} 9. c3 {[%clk 0:03:01]}  Nc6 {[%clk 0:03:04]} 10. O-O {[%clk 0:03:01]}  Re8 {[%clk 0:03:04]} 11. Nf4 {[%clk 0:03:01]}  Bd7 {[%clk 0:03:00]} 12. Nd2 {[%clk 0:03:01]}  Rc8 {[%clk 0:02:58]} 13. Nc4 {[%clk 0:03:02]}  Qe7 {[%clk 0:02:57]} 14. dxc5 {[%clk 0:03:01]}  dxc5 {[%clk 0:02:56]} 15. Nd6 {[%clk 0:03:01]}  Bxc3 {[%clk 0:02:51]} 16. Nxc8 {[%clk 0:03:01]}  Bxc8 {[%clk 0:02:47]} 17. Nd5 {[%clk 0:03:01]}  Qe5 {[%clk 0:02:47]} 18. Nxc3 {[%clk 0:03:02]}  Qxc3 {[%clk 0:02:47]} 19. Rc1 {[%clk 0:03:02]}  Qe5 {[%clk 0:02:45]} 20. Bxc6 {[%clk 0:02:59]}  bxc6 {[%clk 0:02:46]} 21. Qc2 {[%clk 0:02:59]}  Be6 {[%clk 0:02:34]} 22. Qxc5 {[%clk 0:02:58]}  Bd5 {[%clk 0:02:34]} 23. Qd4 {[%clk 0:02:58]}  Qe7 {[%clk 0:02:33]} 24. Rfd1 {[%clk 0:02:54]}  a5 {[%clk 0:02:28]} 25. Rc5 {[%clk 0:02:53]}  h5 {[%clk 0:02:20]} 26. Rxa5 {[%clk 0:02:50]}  Bf3 {[%clk 0:02:18]} 27. Ra7 {[%clk 0:02:42]}  Qf8 {[%clk 0:01:54]} 28. Rc1 {[%clk 0:02:35]}  Rd8 {[%clk 0:01:53]} 29. Rd7 {[%clk 0:02:35]}  Rxd7 {[%clk 0:01:53]} 30. Qxd7 {[%clk 0:02:36]}  Bd5 {[%clk 0:01:53]} 31. Rxc6 {[%clk 0:02:32]}  Bxc6 {[%clk 0:01:48]} 32. Qxc6 {[%clk 0:02:33]}  h4 {[%clk 0:01:46]} 33. gxh4 {[%clk 0:02:29]}  Qb4 {[%clk 0:01:45]} 34. Qc8+ {[%clk 0:02:23]}  Kg7 {[%clk 0:01:44]} 35. Qc4 {[%clk 0:02:24]}  Qe1+ {[%clk 0:01:37]} 36. Kg2 {[%clk 0:02:24]}  Kg8 {[%clk 0:01:31]} 37. b4 {[%clk 0:02:23]}  Qb1 {[%clk 0:01:29]} 38. a4 {[%clk 0:02:20]}  Qa1 {[%clk 0:01:18]} 39. a5 {[%clk 0:02:18]}  Qf6 {[%clk 0:01:15]} 40. b5 {[%clk 0:02:16]}  Qd8 {[%clk 0:01:11]} 41. a6 {[%clk 0:02:15]}  Qa8+ {[%clk 0:01:11]} 42. Qc6 {[%clk 0:02:15]}  Qd8 {[%clk 0:01:08]} 43. a7 {[%clk 0:02:15]} 1-0


[Site "https://www.chess.com"]

[Event "Titled Tuesday Blitz August 15 Late 2023"]
[White "Eljanov, Pavel"]
[Black "Naroditsky, Daniel"]
[WhiteFideId "14102951"]
[BlackFideId "2026961"]
[WhiteElo "2913"]
[BlackElo "3162"]
[Result "1/2-1/2"]
[Round "5"]
[TimeControl "180+1"]
[Date "2023.08.15"]
[WhiteClock "0:00:08"]
[BlackClock "0:00:07"]
[Board "8"]

1. d4 {[%clk 0:03:00]}  Nf6 {[%clk 0:03:00]} 2. c4 {[%clk 0:03:00]}  d6 {[%clk 0:02:58]} 3. Nc3 {[%clk 0:03:00]}  Bf5 {[%clk 0:02:58]} 4. f3 {[%clk 0:02:58]}  e5 {[%clk 0:02:58]} 5. e4 {[%clk 0:02:57]}  exd4 {[%clk 0:02:52]} 6. Qxd4 {[%clk 0:02:56]}  Nc6 {[%clk 0:02:53]} 7. Qd2 {[%clk 0:02:56]}  Be6 {[%clk 0:02:52]} 8. b3 {[%clk 0:02:52]}  g6 {[%clk 0:02:53]} 9. Bb2 {[%clk 0:02:51]}  Bg7 {[%clk 0:02:53]} 10. Nge2 {[%clk 0:02:46]}  O-O {[%clk 0:02:54]} 11. Nf4 {[%clk 0:02:40]}  Nd7 {[%clk 0:02:49]} 12. Ncd5 {[%clk 0:02:29]}  Nde5 {[%clk 0:02:46]} 13. Be2 {[%clk 0:02:24]}  a5 {[%clk 0:02:46]} 14. O-O {[%clk 0:02:22]}  a4 {[%clk 0:02:46]} 15. Kh1 {[%clk 0:02:20]}  Ne7 {[%clk 0:02:38]} 16. Ne3 {[%clk 0:01:55]}  N7c6 {[%clk 0:02:22]} 17. b4 {[%clk 0:01:38]}  Qg5 {[%clk 0:02:12]} 18. g3 {[%clk 0:01:34]}  Qd8 {[%clk 0:01:54]} 19. a3 {[%clk 0:01:33]}  Bd7 {[%clk 0:01:47]} 20. Nfd5 {[%clk 0:01:33]}  Bh3 {[%clk 0:01:39]} 21. Rf2 {[%clk 0:01:29]}  Nd7 {[%clk 0:01:30]} 22. Bxg7 {[%clk 0:01:28]}  Kxg7 {[%clk 0:01:30]} 23. Qc3+ {[%clk 0:01:26]}  Kg8 {[%clk 0:01:26]} 24. f4 {[%clk 0:01:09]}  Be6 {[%clk 0:01:23]} 25. Rg1 {[%clk 0:00:52]}  Re8 {[%clk 0:01:06]} 26. Bd3 {[%clk 0:00:48]}  Bxd5 {[%clk 0:00:52]} 27. cxd5 {[%clk 0:00:47]}  Na7 {[%clk 0:00:36]} 28. g4 {[%clk 0:00:45]}  Qf6 {[%clk 0:00:26]} 29. Qxf6 {[%clk 0:00:36]}  Nxf6 {[%clk 0:00:27]} 30. e5 {[%clk 0:00:17]}  dxe5 {[%clk 0:00:28]} 31. fxe5 {[%clk 0:00:17]}  Rxe5 {[%clk 0:00:28]} 32. Rxf6 {[%clk 0:00:11]}  Rxe3 {[%clk 0:00:29]} 33. Rg3 {[%clk 0:00:11]}  Rxg3 {[%clk 0:00:27]} 34. hxg3 {[%clk 0:00:12]}  Nc8 {[%clk 0:00:26]} 35. Rf1 {[%clk 0:00:09]}  Nb6 {[%clk 0:00:25]} 36. Rc1 {[%clk 0:00:08]}  Nxd5 {[%clk 0:00:25]} 37. Be4 {[%clk 0:00:08]}  c6 {[%clk 0:00:25]} 38. Bxd5 {[%clk 0:00:08]}  cxd5 {[%clk 0:00:25]} 39. Rc7 {[%clk 0:00:07]}  Rd8 {[%clk 0:00:21]} 40. Kg2 {[%clk 0:00:08]}  d4 {[%clk 0:00:22]} 41. Kf2 {[%clk 0:00:08]}  d3 {[%clk 0:00:23]} 42. Ke1 {[%clk 0:00:09]}  d2+ {[%clk 0:00:24]} 43. Kd1 {[%clk 0:00:09]}  Rd3 {[%clk 0:00:24]} 44. Rxb7 {[%clk 0:00:08]}  Rxa3 {[%clk 0:00:25]} 45. Ra7 {[%clk 0:00:08]}  Rxg3 {[%clk 0:00:25]} 46. Rxa4 {[%clk 0:00:06]}  Rxg4 {[%clk 0:00:25]} 47. Kxd2 {[%clk 0:00:07]}  h5 {[%clk 0:00:26]} 48. Kc3 {[%clk 0:00:07]}  h4 {[%clk 0:00:26]} 49. Ra2 {[%clk 0:00:06]}  Rg3+ {[%clk 0:00:20]} 50. Kc4 {[%clk 0:00:06]}  h3 {[%clk 0:00:17]} 51. Rh2 {[%clk 0:00:06]}  g5 {[%clk 0:00:12]} 52. b5 {[%clk 0:00:07]}  g4 {[%clk 0:00:13]} 53. b6 {[%clk 0:00:07]}  Rg1 {[%clk 0:00:12]} 54. Rb2 {[%clk 0:00:06]}  Rc1+ {[%clk 0:00:12]} 55. Kd3 {[%clk 0:00:06]}  Rc8 {[%clk 0:00:11]} 56. Ke3 {[%clk 0:00:06]}  g3 {[%clk 0:00:10]} 57. b7 {[%clk 0:00:06]}  Rb8 {[%clk 0:00:06]} 58. Kf3 {[%clk 0:00:06]}  g2 {[%clk 0:00:05]} 59. Kf2 {[%clk 0:00:04]}  Kg7 {[%clk 0:00:05]} 60. Rb3 {[%clk 0:00:05]}  f6 {[%clk 0:00:02]} 61. Rg3+ {[%clk 0:00:05]}  Kf7 {[%clk 0:00:02]} 62. Rxh3 {[%clk 0:00:05]}  Kg7 {[%clk 0:00:02]} 63. Rg3+ {[%clk 0:00:05]}  Kf7 {[%clk 0:00:02]} 64. Rb3 {[%clk 0:00:05]}  Ke6 {[%clk 0:00:02]} 65. Kxg2 {[%clk 0:00:05]}  Kd6 {[%clk 0:00:03]} 66. Kf3 {[%clk 0:00:06]}  Kc6 {[%clk 0:00:04]} 67. Kf4 {[%clk 0:00:06]}  Rxb7 {[%clk 0:00:05]} 68. Rxb7 {[%clk 0:00:06]}  Kxb7 {[%clk 0:00:06]} 69. Kf5 {[%clk 0:00:07]}  Kc6 {[%clk 0:00:07]} 70. Kxf6 {[%clk 0:00:08]} 1/2-1/2


[Site "https://www.chess.com"]